bitfinex-derivatives/quotes_SOLF0:USTF0_20241203
["timestamp","ask_amount","ask_price","bid_price","bid_amount"]
[1733239499162,2.2301,224.15,224.11,5.36]
[1733239499461,2.6392,224.22,224.11,5.36]
[1733239499658,2.23,224.16,224.12,2.2303]
[1733239500161,2.6392,224.22,224.11,5.36]
[1733239500360,2.2303,224.12,224.1,489.0]
[1733239500562,2.6392,224.22,224.1,489.0]
[1733239500758,2.6392,224.22,224.11,2.2304]
[1733239501057,20.99438139,224.2,224.1,489.0]
[1733239501256,2.2304,224.11,224.1,489.0]
[1733239505861,2.2304,224.11,224.1,476.96110001]
[1733239506363,2.89832004,224.11,224.1,476.96110001]
[1733239506762,2.89832004,224.11,224.1,464.06880001]
[1733239506763,2.2304,224.11,224.1,464.06880001]
[1733239506962,2.2304,224.11,224.1,211.25992942]
[1733239506963,2.8982775,224.11,224.1,211.25992942]
[1733239508657,11.358589,224.11,224.1,211.25992942]
[1733239509164,11.358589,224.11,224.1,566.25787411]
[1733239509367,11.358589,224.11,224.1,53.50962366]
[1733239509665,11.358589,224.11,224.1,45.62012366]
[1733239509857,9.128189,224.11,223.96,477.8209]
[1733239510055,20.99438139,224.09,223.96,477.8209]
[1733239510461,8.45661132,224.08,223.96,477.8209]
[1733239510661,23.2340024,224.09,223.96,477.8209]
[1733239510855,23.2340024,224.09,223.96,480.0528]
[1733239511162,0.66815371,224.08,223.96,477.8209]
[1733239511763,20.99438139,224.05,223.96,477.8209]
[1733239512356,2.2318,223.97,223.96,475.0]
[1733239513264,4.43779302,223.97,223.96,475.0]
[1733239513663,5.10614057,223.97,223.96,475.0]
[1733239513856,2.90014755,223.97,223.96,475.0]
[1733239514256,5.10480036,223.97,223.96,475.0]
[1733239514462,2.90014755,223.97,223.96,475.0]
[1733239514862,4.42584925,223.97,223.96,475.0]
[1733239515068,2.2327,223.88,223.87,5.3364]
[1733239515662,20.99438139,223.88,223.81,341.0]
[1733239516068,2.2333,223.82,223.81,341.0]
[1733239516965,2.2332,223.83,223.81,341.0]
[1733239517468,2.2331,223.84,223.81,341.0]
[1733239517768,23.17279078,223.92,223.81,341.0]
[1733239517972,2.2331,223.85,223.81,341.0]
[1733239518167,26.35438139,223.96,223.81,341.0]
[1733239518363,20.99438139,224.0,223.81,341.0]
[1733239518569,2.2325,223.9,223.82,343.6219]
[1733239518869,2.24422905,223.93,223.83,2.2332]
[1733239519079,20.99438139,224.0,223.84,5.1726]
[1733239519371,0.66861153,223.92,223.84,5.1726]
[1733239519573,2.94837811,223.92,223.84,5.1726]
[1733239519785,2.233,223.86,223.84,5.1726]
[1733239519965,2.25719242,223.9,223.84,5.1726]
[1733239520166,20.99438139,223.96,223.84,5.1726]
[1733239520570,2.2331,223.84,223.83,341.0]
[1733239521974,2.90192307,223.84,223.83,341.0]
[1733239522771,23.22748139,223.84,223.83,341.0]
[1733239522984,23.22748139,223.84,223.83,168.19060333]
[1733239523286,2.2331,223.84,223.83,168.19060333]
[1733239523470,0.66895946,223.84,223.83,168.19060333]
[1733239523674,2.27662176,223.9,223.83,168.19060333]
[1733239523877,20.99438139,223.91,223.83,168.19060333]
[1733239524177,2.23481812,223.9,223.83,168.19060333]
[1733239524673,2.2329,223.86,223.83,168.19060333]
[1733239525579,2.2331,223.84,223.83,168.19060333]
[1733239526277,2.2331,223.84,223.83,81.38120666]
[1733239526477,2.2339,223.76,223.75,173.4551]
[1733239526774,20.99438139,223.83,223.75,173.4551]
[1733239526980,2.2339,223.76,223.75,173.4551]
[1733239527283,20.99438139,223.83,223.75,173.4551]
[1733239527477,2.2335,223.81,223.75,173.4551]
[1733239527783,20.99438139,223.83,223.75,173.4551]
[1733239528182,2.2339,223.76,223.75,168.0]
[1733239532279,2.2346,223.69,223.68,83.7821]
[1733239533389,2.18689964,223.79,223.68,81.0]
[1733239533583,20.99438139,223.75,223.68,81.0]
[1733239533789,2.24876715,223.74,223.68,81.0]
[1733239533991,2.2346,223.69,223.68,81.0]
[1733239534892,4.49661978,223.69,223.68,81.0]
[1733239535090,20.99438139,223.67,223.61,2.6251]
[1733239535288,20.99438139,223.67,223.54,2.7316]
[1733239535488,20.99438139,223.63,223.34,4.4763]
[1733239535692,20.99438139,223.63,223.46,2.2369]
[1733239535897,20.99438139,223.59,223.4,2.7682]
[1733239536197,2.2364,223.52,223.43,2.2372]
[1733239536391,2.2364,223.52,223.4,2.7682]
[1733239536589,2.2365,223.51,223.4,2.7682]
[1733239536797,20.99438139,223.59,223.44,2.237]
[1733239537295,20.99438139,223.59,223.43,2.2372]
[1733239537498,20.99438139,223.59,223.4,2.7682]
[1733239537695,20.99438139,223.55,223.4,2.7682]
[1733239537900,23.2576166,223.55,223.41,2.2374]
[1733239538501,23.2576166,223.55,223.4,5.0057]
[1733239538702,23.2576166,223.55,223.41,2.6349]
[1733239539101,20.99438139,223.55,223.41,2.6349]
[1733239539298,20.99438139,223.42,223.17,20.99438139]
[1733239539500,2.2372,223.44,223.28,2.7021]
[1733239539703,20.99438139,223.49,223.32,2.2383]
[1733239539897,23.23031095,223.49,223.33,10.6095]
[1733239540300,2.2369,223.46,223.34,2.2381]
[1733239540496,20.99438139,223.53,223.33,10.6095]
[1733239540698,26.35438139,223.52,223.05,6.09967317]
[1733239540896,20.99438139,223.31,223.09,20.99438139]
[1733239541101,20.99438139,223.35,223.13,20.99438139]
[1733239541295,20.99438139,223.35,223.14,5.36]
[1733239541503,2.2383,223.33,223.14,5.36]
[1733239541800,20.99438139,223.31,223.13,23.1872238]
[1733239542005,2.2389,223.27,223.15,2.24]
[1733239542197,23.28530049,223.31,223.14,5.36]
[1733239542597,23.28530049,223.31,223.16,2.2399]
[1733239542598,2.239,223.26,223.16,2.2399]
[1733239542798,23.28530049,223.31,223.17,2.6052]
[1733239543005,20.99438139,223.27,223.18,2.6557]
[1733239543202,2.2392,223.24,223.18,2.6557]
[1733239543403,20.99438139,223.27,223.18,2.6557]
[1733239543804,20.99438139,223.31,223.19,2.7761]
[1733239544104,2.21792138,223.53,223.2,5.36]
[1733239544105,20.99438139,223.39,223.2,5.36]
[1733239544303,20.99438139,223.43,223.2,26.35438139]
[1733239544506,20.99438139,223.43,223.24,20.99438139]
[1733239544807,20.99438139,223.43,223.25,2.1873479]
[1733239545111,20.99438139,223.35,223.19,2.7761]
[1733239546398,20.99438139,223.4,223.2,20.99438139]
[1733239546803,23.26239362,223.4,223.24,2.2391]
[1733239547004,23.26239362,223.4,223.2,20.99438139]
[1733239547005,20.99438139,223.4,223.23,5.36]
[1733239547201,2.23940145,223.39,223.23,5.36]
[1733239547605,2.2382,223.34,223.25,2.239]
[1733239547800,2.21184579,223.39,223.25,2.239]
[1733239548005,2.2383,223.33,223.24,2.2391]
[1733239548408,20.99438139,223.4,223.23,5.36]
[1733239548607,2.2383,223.33,223.23,5.36]
[1733239548810,20.99438139,223.4,223.23,5.36]
[1733239549306,20.99438139,223.44,223.24,20.99438139]
[1733239549811,20.99438139,223.44,223.23,5.36]
[1733239549812,2.237,223.45,223.23,5.36]
[1733239550013,20.99438139,223.48,223.29,20.99438139]
[1733239550207,20.99438139,223.48,223.3,2.6586]
[1733239550708,38.40081681,223.56,223.37,20.99438139]
[1733239550912,38.40081681,223.56,223.38,5.34]
[1733239551206,20.99438139,223.53,223.38,5.34]
[1733239551407,20.99438139,223.49,223.31,5.5257]
[1733239552005,2.2372,223.43,223.35,2.238]
[1733239552609,2.2371,223.45,223.36,2.2379]
[1733239552804,20.99438139,223.49,223.31,5.5257]
[1733239553006,1.3579,223.55,223.31,5.5257]
[1733239553007,20.99438139,223.53,223.31,5.5257]
[1733239553414,20.99438139,223.53,223.39,2.2376]
[1733239553415,2.2368,223.47,223.39,2.2376]
[1733239553712,20.99438139,223.53,223.31,5.5257]
[1733239554304,20.99438139,223.49,223.31,5.5257]
[1733239554808,20.99438139,223.53,223.34,20.99438139]
[1733239555706,2.2368,223.47,223.4,2.2375]
[1733239555905,20.99438139,223.49,223.31,5.5257]
[1733239556307,2.2371,223.44,223.31,5.5257]
[1733239556716,2.20515798,223.44,223.31,5.5257]
[1733239557009,2.2374,223.42,223.34,2.238]
[1733239557211,2.20515798,223.44,223.34,2.238]
[1733239557414,2.20515798,223.44,223.31,5.5257]
[1733239557607,2.2373,223.42,223.35,2.238]
[1733239557818,20.99438139,223.45,223.31,5.5257]
[1733239558316,20.99438139,223.45,223.36,2.2379]
[1733239558615,20.99438139,223.45,223.31,5.5257]
[1733239558916,2.2373,223.42,223.35,2.238]
[1733239559712,20.99438139,223.45,223.31,5.5257]
[1733239560314,2.237,223.46,223.4,2.2375]
[1733239560516,2.237,223.46,223.31,5.5257]
[1733239560711,20.99438139,223.49,223.31,5.5257]
[1733239560913,20.99438139,223.49,223.4,2.2375]
[1733239561218,20.99438139,223.49,223.31,5.5257]
[1733239561518,4.1733,223.66,223.43,20.99438139]
[1733239561721,2.29291587,223.75,223.51,20.99438139]
[1733239561913,5.34,223.78,223.52,5.34]
[1733239562119,20.99438139,223.75,223.55,20.99438139]
[1733239562420,2.2345,223.71,223.63,2.2352]
[1733239562619,2.25101572,223.78,223.59,20.99438139]
[1733239562913,2.2345,223.71,223.63,2.2351]
[1733239563120,20.99438139,223.75,223.6,8.3203]
[1733239563316,306.16559856,224.08,223.63,20.99438139]
[1733239563522,2.2343,223.73,223.62,2.2353]
[1733239563716,20.99438139,223.72,223.54,2.7266]
[1733239564223,2.2353,223.63,223.54,2.7266]
[1733239564623,20.99438139,223.68,223.54,2.7266]
[1733239564815,2.22167981,223.63,223.54,2.7266]
[1733239565121,2.22167981,223.63,223.54,23.72098139]
[1733239565319,2.2344,223.72,223.6,2.2355]
[1733239565719,2.25142746,223.71,223.6,2.2355]
[1733239566020,23.17557755,223.77,223.54,23.72098139]
[1733239566919,23.17557755,223.77,223.58,20.99438139]
[1733239566920,20.99438139,223.77,223.58,20.99438139]
[1733239567118,2.21519348,223.77,223.62,20.99438139]
[1733239567419,2.8052,223.8,223.62,20.99438139]
[1733239568014,2.2343,223.73,223.62,20.99438139]
[1733239568219,25.99643421,223.8,223.58,20.99438139]
[1733239569218,20.99438139,223.76,223.58,20.99438139]
[1733239569422,25.99643421,223.8,223.58,20.99438139]
[1733239570227,2.2345,223.7,223.58,20.99438139]
[1733239570526,2.2345,223.7,223.59,5.34]
[1733239570727,20.99438139,223.76,223.59,2.7475]
[1733239570923,20.99438139,223.76,223.6,5.34]
[1733239571225,20.99438139,223.76,223.6,7.5755]
[1733239571729,20.99438139,223.76,223.59,2.7475]
[1733239572325,2.235,223.65,223.59,2.7475]
[1733239572526,2.26328179,223.67,223.53,2.8141]
[1733239572723,20.99438139,223.64,223.47,5.34]
[1733239573027,23.26459684,223.64,223.47,5.34]
[1733239573427,23.26459684,223.64,223.44,20.99438139]
[1733239573428,2.2357,223.58,223.44,20.99438139]
[1733239573626,20.99438139,223.6,223.43,13.6363]
[1733239574023,2.2365,223.51,223.43,7.5772]
[1733239574227,20.99438139,223.6,223.43,5.34]
[1733239575530,20.99438139,223.6,223.43,8.1364]
[1733239576126,2.2364,223.51,223.43,8.1364]
[1733239576325,20.99438139,223.6,223.43,2.7964]
[1733239576526,2.27021545,223.64,223.34,20.99438139]
[1733239576527,20.99438139,223.56,223.34,20.99438139]
[1733239576735,2.6252,223.65,223.34,26.33438139]
[1733239576736,20.99438139,223.52,223.34,26.33438139]
[1733239576925,23.28376557,223.52,223.34,26.33438139]
[1733239577130,20.99438139,223.52,223.34,26.33438139]
[1733239577630,2.237,223.46,223.39,2.2376]
[1733239578024,20.99438139,223.52,223.34,26.33438139]
[1733239578230,2.2367,223.48,223.4,2.2374]
[1733239578430,20.99438139,223.52,223.34,26.33438139]
[1733239579836,20.99438139,223.52,223.4,2.2375]
[1733239580331,2.25352456,223.51,223.4,2.2375]
[1733239580528,20.99438139,223.43,223.15,6.09967317]
[1733239580727,20.99438139,223.43,223.16,2.7063]
[1733239580728,20.99438139,223.38,223.16,2.7063]
[1733239580938,20.99438139,223.34,223.16,2.7063]
[1733239581232,20.99438139,223.3,223.16,2.7063]
[1733239581436,2.2392,223.24,223.16,2.7063]
[1733239581636,20.99438139,223.3,223.16,2.7063]
[1733239581938,20.99438139,223.3,223.14,5.4019]
[1733239582136,20.99438139,223.3,223.14,7.642]
[1733239582339,20.99438139,223.26,223.14,5.4019]
[1733239582539,2.2393,223.23,223.14,5.4019]
[1733239582738,20.99438139,223.26,223.14,2.7671]
[1733239583735,21.15406471,223.27,223.14,2.7671]
[1733239584134,21.15406471,223.27,223.08,23.78516471]
[1733239584332,2.239,223.26,223.13,2.2402]
[1733239584634,34.37802221,223.27,223.08,2.6311]
[1733239584838,34.37802221,223.23,223.08,2.6311]
[1733239585135,2.2199595,223.23,223.06,2.8016]
[1733239585336,83.55222221,223.36,222.96,36.66299113]
[1733239585337,34.37802221,223.15,222.96,36.66299113]
[1733239585536,2.2402,223.14,223.05,2.241]
[1733239585840,2.2402,223.14,222.96,36.66299113]
[1733239586037,34.37802221,223.19,222.96,36.66299113]
[1733239586238,34.37802221,223.19,222.96,34.37802221]
[1733239586533,2.2403,223.13,223.03,2.2412]
[1733239586739,34.37802221,223.15,222.96,34.37802221]
[1733239587240,34.37802221,223.15,222.97,23.64174818]
[1733239587740,2.2407,223.09,222.99,2.2416]
[1733239588034,34.37802221,223.15,222.99,2.2416]
[1733239588340,34.37802221,223.15,222.96,39.71802221]
[1733239588838,34.37802221,223.15,222.96,5.34]
[1733239589037,34.37802221,223.11,222.96,7.5819]
[1733239589242,34.37802221,223.11,222.96,2.2419]
[1733239589539,34.37802221,223.11,222.94,5.4576]
[1733239590135,2.2407,223.09,222.99,2.2416]
[1733239590342,34.37802221,223.11,222.95,5.34]
[1733239590640,34.37802221,223.15,222.96,34.37802221]
[1733239591036,34.37802221,223.15,222.95,5.34]
[1733239591438,34.37802221,223.15,222.96,34.37802221]
[1733239591743,34.37802221,223.11,222.95,5.34]
[1733239591940,34.37802221,223.15,223.02,2.2413]
[1733239592140,34.37802221,223.15,222.95,5.34]
[1733239592342,34.37802221,223.11,222.95,5.34]
[1733239592640,45.18062221,223.2,222.94,2.8016]
[1733239592641,34.37802221,223.07,222.94,2.8016]
[1733239592841,34.37802221,223.07,222.91,2.5931]
[1733239593042,34.37802221,223.03,222.84,39.71802221]
[1733239593238,34.37802221,222.95,222.65,4.4901]
[1733239593441,34.37802221,223.04,222.62,2.8309]
[1733239593442,34.37802221,222.89,222.62,2.8309]
[1733239593638,34.37802221,222.93,222.75,34.37802221]
[1733239593940,34.37802221,222.97,222.79,34.37802221]
[1733239594139,2.2421,222.95,222.87,2.2428]
[1733239594336,34.37802221,222.97,222.8,8.1709]
[1733239594942,2.2422,222.94,222.8,8.1709]
[1733239595134,34.37802221,222.97,222.8,2.8309]
[1733239595341,34.37802221,222.97,222.81,5.34]
[1733239595544,34.37802221,222.97,222.8,2.8309]
[1733239595743,34.37802221,222.97,222.82,5.34]
[1733239595943,34.37802221,222.93,222.82,5.34]
[1733239596139,34.37802221,222.93,222.78,2.2437]
[1733239596140,2.2428,222.88,222.78,2.2437]
[1733239596342,34.37802221,222.93,222.76,2.7491]
[1733239596641,34.37802221,222.89,222.76,2.7491]
[1733239596842,2.2431,222.85,222.76,4.993]
[1733239597046,34.37802221,222.89,222.75,5.34]
[1733239597544,2.2435,222.81,222.75,5.34]
[1733239598046,5.34,223.0,222.75,5.34]
[1733239598047,34.37802221,222.85,222.75,5.34]
[1733239598346,34.37802221,222.85,222.68,5.34]
[1733239598543,18.72,223.0,222.67,8.0041]
[1733239598544,2.2442,222.74,222.67,8.0041]
[1733239598739,34.37802221,222.81,222.67,8.0041]
[1733239599043,2.2433,222.83,222.67,42.38212221]
[1733239599239,34.37802221,222.85,222.67,42.38212221]
[1733239599440,45.17432221,222.89,222.75,2.244]
[1733239599646,2.2434,222.82,222.75,2.244]
[1733239599843,45.17432221,222.89,222.74,2.2441]
[1733239600039,45.17432221,222.89,222.67,42.38212221]
[1733239600240,34.37802221,222.85,222.67,42.38212221]
[1733239600647,2.2441,222.75,222.67,8.0041]
[1733239600847,34.37802221,222.85,222.7,2.2445]
[1733239601146,34.37802221,222.85,222.7,5.34]
[1733239601844,2.27578183,222.84,222.7,5.34]
[1733239602040,34.37802221,222.85,222.7,5.34]
[1733239602246,34.37802221,222.81,222.7,5.34]
[1733239602647,34.37802221,222.77,222.52,8.2776]
[1733239602848,34.37802221,222.77,222.6,5.34]
[1733239603348,34.37802221,222.77,222.4,38.87322221]
[1733239603349,34.37802221,222.68,222.38,2.21963405]
[1733239603548,34.37802221,222.68,222.5,34.37802221]
[1733239603744,2.2454,222.62,222.55,2.246]
[1733239604144,34.37802221,222.68,222.54,5.34]
[1733239604853,2.245,222.66,222.59,2.2456]
[1733239605049,34.37802221,222.72,222.54,5.34]
[1733239605742,34.37802221,222.72,222.54,39.71802221]
[1733239605951,34.37802221,222.72,222.55,5.7087]
[1733239606153,2.2447,222.69,222.6,2.2455]
[1733239606343,36.60017705,222.72,222.55,5.7087]
[1733239606547,36.60017705,222.72,222.56,5.34]
[1733239606842,2.2066483,222.71,222.55,5.7087]
[1733239607145,2.2066483,222.71,222.56,5.34]
[1733239607345,34.37802221,222.72,222.56,5.34]
[1733239607549,2.2447,222.69,222.6,2.2455]
[1733239607742,2.20013105,222.7,222.56,5.34]
[1733239607948,34.37802221,222.72,222.56,5.34]
[1733239608153,34.37802221,222.68,222.56,5.34]
[1733239609047,2.245,222.66,222.58,2.2457]
[1733239609251,34.37802221,222.68,222.56,5.34]
[1733239609448,34.37802221,222.68,222.57,2.2458]
[1733239609650,34.37802221,222.68,222.53,5.34]
[1733239609848,7.7306615,222.75,222.45,46.7]
[1733239609849,34.37802221,222.64,222.45,86.41802221]
[1733239610150,2.2455,222.61,222.54,2.2461]
[1733239610951,34.37802221,222.64,222.45,86.41802221]
[1733239611452,2.2455,222.6,222.53,2.2462]
[1733239611651,34.37802221,222.64,222.45,86.41802221]
[1733239611858,2.2457,222.59,222.5,2.2465]
[1733239612048,34.37802221,222.64,222.5,2.2465]
[1733239612253,34.37802221,222.6,222.41,42.58262221]
[1733239612455,2.2459,222.57,222.49,2.2466]
[1733239612654,34.37802221,222.6,222.43,5.34]
[1733239613156,2.2459,222.57,222.5,2.2465]
[1733239613358,34.37802221,222.6,222.43,5.34]
[1733239613553,2.2457,222.59,222.53,2.2462]
[1733239613757,34.37802221,222.6,222.43,5.34]
[1733239614159,2.2459,222.57,222.5,2.2465]
[1733239614456,34.37802221,222.6,222.43,5.34]
[1733239615262,2.246,222.56,222.5,2.2466]
[1733239615453,34.37802221,222.6,222.43,5.34]
[1733239617254,34.37802221,222.56,222.43,5.34]
[1733239619369,2.2462,222.54,222.48,2.2467]
[1733239619657,34.37802221,222.56,222.43,5.34]
[1733239619865,2.2464,222.52,222.46,2.2469]
[1733239620261,34.37802221,222.56,222.43,5.34]
[1733239620869,36.62402221,222.56,222.49,2.2466]
[1733239621060,34.37802221,222.6,222.43,8.0375]
[1733239621265,34.37802221,222.56,222.43,5.34]
[1733239621469,34.37802221,222.56,222.49,2.2466]
[1733239621668,34.37802221,222.56,222.43,5.34]
[1733239621966,36.62402221,222.56,222.51,2.2464]
[1733239622164,34.37802221,222.6,222.44,5.4438]
[1733239622372,34.37802221,222.64,222.46,34.37802221]
[1733239623167,2.2456,222.6,222.54,2.2461]
[1733239623364,34.37802221,222.64,222.46,34.37802221]
[1733239623667,2.2459,222.57,222.51,2.2464]
[1733239623871,34.37802221,222.6,222.45,2.6162]
[1733239624068,34.37802221,222.54,222.34,34.37802221]
[1733239624366,34.37802221,222.54,222.38,5.5526]
[1733239624572,2.6216,222.53,222.39,5.34]
[1733239624865,2.2466,222.5,222.39,5.34]
[1733239625067,2.6216,222.53,222.39,5.34]
[1733239625471,2.2467,222.49,222.43,2.2472]
[1733239625667,2.6216,222.53,222.39,5.34]
[1733239626167,2.6216,222.53,222.43,2.2471]
[1733239626168,2.2466,222.48,222.43,2.2471]
[1733239626369,2.6216,222.53,222.39,5.34]
[1733239627365,2.6216,222.53,222.46,2.2468]
[1733239627563,34.37802221,222.58,222.42,34.37802221]
[1733239627766,34.37802221,222.62,222.43,2.7336]
[1733239627966,34.37802221,222.62,222.46,34.37802221]
[1733239628167,34.37802221,222.62,222.46,36.62657164]
[1733239628371,34.37802221,222.62,222.46,34.37802221]
[1733239628769,42.57592221,222.66,222.46,36.6730887]
[1733239628971,34.37802221,222.62,222.46,2.29506649]
[1733239629176,34.37802221,222.62,222.43,2.7336]
[1733239629570,2.2456,222.59,222.52,2.2461]
[1733239629768,34.37802221,222.62,222.43,2.7336]
[1733239629769,34.37802221,222.62,222.51,5.34]
[1733239630478,34.37802221,222.7,222.51,39.71802221]
[1733239630678,34.37802221,222.7,222.52,7.65604132]
[1733239630978,2.2448,222.67,222.52,7.65604132]
[1733239631171,34.37802221,222.7,222.52,7.65604132]
[1733239631368,2.245,222.64,222.56,2.2457]
[1733239631573,34.37802221,222.66,222.54,5.34]
[1733239631873,37.02942221,222.72,222.54,5.34]
[1733239632270,37.02942221,222.72,222.55,2.6783]
[1733239632473,2.245,222.64,222.56,2.2457]
[1733239632673,34.37802221,222.64,222.54,5.34]
[1733239633174,34.37802221,222.64,222.52,5.4612]
[1733239633377,34.37802221,222.64,222.53,5.34]
[1733239633775,2.2453,222.62,222.53,5.34]
[1733239634180,2.2446,222.68,222.58,2.2455]
[1733239634384,34.37802221,222.71,222.54,5.7181]
[1733239634675,2.2445,222.69,222.63,2.245]
[1733239634881,34.37802221,222.71,222.62,5.34]
[1733239635072,34.37802221,222.71,222.54,5.7181]
[1733239635272,2.2451,222.64,222.58,2.2456]
[1733239635477,34.37802221,222.67,222.47,37.12882221]
[1733239635680,2.6514,222.72,222.51,2.2462]
[1733239635681,2.2457,222.57,222.51,2.2462]
[1733239635878,36.6032746,222.63,222.45,8.0028]
[1733239636173,36.6032746,222.63,222.46,5.34]
[1733239636174,5.4077,222.62,222.46,5.34]
[1733239636570,34.37802221,222.59,222.46,5.34]
[1733239636775,2.702,222.58,222.46,5.34]
[1733239636975,2.702,222.58,222.44,5.34]
[1733239637179,2.702,222.58,222.39,34.37802221]
[1733239637376,2.702,222.58,222.4,5.34]
[1733239637581,34.37802221,222.55,222.42,2.2472]
[1733239637880,34.37802221,222.55,222.4,5.34]
[1733239638478,34.37802221,222.55,222.45,2.2468]
[1733239638777,2.702,222.58,222.4,5.34]
[1733239639275,2.2463,222.51,222.4,5.34]
[1733239639477,2.702,222.58,222.4,5.34]
[1733239639782,34.37802221,222.55,222.4,5.34]
[1733239639979,2.2464,222.5,222.44,2.247]
[1733239640182,34.37802221,222.55,222.4,5.34]
[1733239640482,2.2465,222.5,222.45,2.2469]
[1733239640979,34.37802221,222.55,222.45,2.2469]
[1733239641882,2.702,222.58,222.43,34.37802221]
[1733239642182,5.4077,222.62,222.43,34.37802221]
[1733239642183,5.4077,222.62,222.47,34.37802221]
[1733239642384,5.4077,222.62,222.53,2.246]
[1733239642583,5.4077,222.62,222.52,5.32]
[1733239642778,34.37802221,222.61,222.52,5.32]
[1733239643887,2.2455,222.59,222.54,2.246]
[1733239644280,2.7406,222.62,222.52,5.32]
[1733239644483,2.2455,222.59,222.54,2.246]
[1733239644885,2.7406,222.62,222.52,5.32]
[1733239645181,2.2457,222.57,222.52,5.32]
[1733239645487,2.2454,222.61,222.52,5.32]
[1733239645687,2.7762,222.69,222.52,5.32]
[1733239645688,39.93292221,222.69,222.52,5.32]
[1733239646080,39.93292221,222.69,222.53,2.7159]
[1733239646781,34.37802221,222.73,222.53,2.7159]
[1733239646987,34.37802221,222.73,222.55,34.37802221]
[1733239647185,2.2444,222.7,222.55,36.60394834]
[1733239647381,34.37802221,222.73,222.55,36.60394834]
[1733239647789,34.37802221,222.77,222.55,36.60394834]
[1733239648091,2.7787,222.8,222.59,34.37802221]
[1733239648390,34.37802221,222.81,222.59,36.64081568]
[1733239648990,34.37802221,222.85,222.63,34.37802221]
[1733239649186,34.37802221,222.81,222.64,12.86976881]
[1733239649393,34.37802221,222.81,222.71,2.2443]
[1733239649394,2.2438,222.76,222.71,2.2443]
[1733239649591,34.37802221,222.77,222.68,5.32]
[1733239650387,34.37802221,222.81,222.68,5.32]
[1733239650692,34.37802221,222.72,222.58,1.12279232]
[1733239650888,34.37802221,222.66,222.52,5.32]
[1733239651091,34.37802221,222.66,222.52,7.5662]
[1733239651392,34.37802221,222.66,222.52,5.32]
[1733239653091,34.37802221,222.66,222.51,5.32]
[1733239653391,34.37802221,222.7,222.51,39.69802221]
[1733239654493,34.37802221,222.7,222.52,34.37802221]
[1733239654690,13.38,222.95,222.6,34.37802221]
[1733239654891,2.2443,222.71,222.65,2.2448]
[1733239655090,34.37802221,222.79,222.61,5.32]
[1733239655489,34.37802221,222.79,222.61,8.1598]
[1733239655886,34.37802221,222.79,222.62,5.2878]
[1733239656495,2.2437,222.77,222.71,2.2442]
[1733239656689,2.7265,222.81,222.7,5.32]
[1733239658097,2.2438,222.76,222.7,7.5643]
[1733239658898,34.37802221,222.79,222.61,2.8398]
[1733239659094,34.37802221,222.79,222.62,5.32]
[1733239659801,2.7265,222.81,222.64,34.37802221]
[1733239660394,2.2437,222.77,222.64,34.37802221]
[1733239660601,2.7265,222.81,222.64,34.37802221]
[1733239660997,2.244,222.74,222.64,37.18072221]
[1733239661495,2.2441,222.73,222.67,2.2446]
[1733239661693,2.7265,222.81,222.64,37.18072221]
[1733239662095,2.7265,222.81,222.65,5.32]
[1733239663400,2.244,222.74,222.65,5.32]
[1733239663601,2.7265,222.81,222.65,5.32]
[1733239663993,34.37802221,222.8,222.61,2.8398]
[1733239664196,34.37802221,222.76,222.61,2.8398]
[1733239664399,34.37802221,222.76,222.6,34.37802221]
[1733239664595,34.37802221,222.72,222.56,34.37802221]
[1733239664793,34.37802221,222.72,222.56,39.69802221]
[1733239664794,5.5518,222.71,222.56,39.69802221]
[1733239665496,5.5518,222.71,222.56,5.32]
[1733239665692,2.20151871,222.7,222.56,5.32]
[1733239665898,5.5518,222.71,222.56,5.32]
[1733239666500,2.22981818,222.7,222.56,5.32]
[1733239666703,2.2447,222.67,222.56,7.5658]
[1733239666896,2.22083422,222.7,222.56,5.32]
[1733239667096,5.5518,222.71,222.56,5.32]
[1733239667300,2.7702,222.69,222.56,7.5658]